bitfinex-derivatives/quotes_BTCF0:USTF0_20241003
["timestamp","ask_amount","ask_price","bid_price","bid_amount"]
[1727937915004,1.70267724,61442.0,61435.0,0.0038]
[1727937915005,0.065111,61436.0,61435.0,0.0038]
[1727937915206,0.065114,61433.0,61428.0,0.3646]
[1727937915411,0.13,61431.0,61428.0,0.3608]
[1727937916009,0.065118,61430.0,61428.0,0.3608]
[1727937916411,0.065118,61430.0,61428.0,0.3618]
[1727937916412,0.098018,61430.0,61428.0,0.3618]
[1727937916810,0.098018,61430.0,61428.0,0.001]
[1727937916811,0.458818,61430.0,61428.0,0.001]
[1727937917011,0.0623,61429.0,61423.0,0.02169517]
[1727937917212,0.065124,61424.0,61419.0,0.07137099]
[1727937917410,0.065124,61424.0,61419.0,0.06757099]
[1727937917714,0.065124,61424.0,61419.0,0.065129]
[1727937918717,0.065124,61424.0,61420.0,0.38172527]
[1727937918906,0.065124,61424.0,61420.0,0.38272527]
[1727937919510,0.0623,61429.0,61420.0,0.38272527]
[1727937919721,0.0623,61429.0,61423.0,0.001]
[1727937920311,0.0623,61429.0,61420.0,0.51456527]
[1727937920517,0.0623,61429.0,61420.0,0.51372527]
[1727937920721,0.06512,61428.0,61420.0,0.51372527]
[1727937920928,0.0623,61429.0,61420.0,0.51372527]
[1727937920929,0.065121,61427.0,61420.0,0.51372527]
[1727937921123,0.065121,61427.0,61423.0,0.001]
[1727937921513,0.065122,61426.0,61420.0,0.51356527]
[1727937921714,0.065122,61426.0,61420.0,0.51372527]
[1727937921915,0.00196,61430.0,61425.0,0.4908]
[1727937922213,0.00244236,61437.0,61425.0,0.4908]
[1727937922214,0.00624236,61437.0,61431.0,0.065116]
[1727937922424,0.00244236,61437.0,61436.0,0.13]
[1727937923517,0.00244236,61437.0,61433.0,0.13]
[1727937924419,0.00244236,61437.0,61436.0,0.002]
[1727937925225,0.00244236,61437.0,61436.0,0.001]
[1727937926124,0.00244236,61437.0,61433.0,0.132]
[1727937926522,0.3646,61443.0,61436.0,0.4908]
[1727937926523,0.0038,61443.0,61436.0,0.4908]
[1727937926820,0.0038,61447.0,61442.0,0.13]
[1727937927022,0.03754715,61446.0,61442.0,0.13]
[1727937927216,0.394899,61448.0,61442.0,0.13]
[1727937927217,0.03754715,61445.0,61442.0,0.13]
[1727937927412,0.03762381,61444.0,61442.0,0.13]
[1727937927616,0.394899,61448.0,61442.0,0.13]
[1727937927918,0.03762367,61447.0,61442.0,0.13]
[1727937928218,0.03762367,61446.0,61442.0,0.13]
[1727937928523,0.03762367,61445.0,61442.0,0.132]
[1727937928720,0.03762367,61444.0,61442.0,0.132]
[1727937928919,0.03762367,61443.0,61442.0,0.132]
[1727937929726,0.10272767,61443.0,61442.0,0.002]
[1727937929930,0.10259807,61443.0,61442.0,0.002]
[1727937930452,0.195104,61443.0,61442.0,0.002]
[1727937931021,0.195104,61443.0,61435.0,0.0038]
[1727937931022,1.19335171,61443.0,61435.0,0.0038]
[1727937931219,0.13,61437.0,61430.0,0.0038]
[1727937931417,0.13,61437.0,61425.0,0.425922]
[1727937931418,0.065115,61433.0,61425.0,0.425922]
[1727937931926,0.13,61437.0,61425.0,0.44695979]
[1727937932130,0.03712395,61436.0,61425.0,0.425922]
[1727937932428,0.03712395,61435.0,61425.0,0.425922]
[1727937932625,0.065111,61436.0,61435.0,0.001]
[1727937932835,0.10225421,61436.0,61435.0,0.001]
[1727937933132,0.065111,61436.0,61435.0,0.001]
[1727937933727,0.065105,61442.0,61435.0,0.001]
[1727937933957,0.065105,61442.0,61437.0,0.13]
[1727937934532,0.065106,61441.0,61436.0,0.0311]
[1727937935136,0.065106,61441.0,61437.0,0.001]
[1727937935833,0.066106,61441.0,61437.0,0.001]
[1727937936433,0.067106,61441.0,61437.0,0.001]
[1727937937030,0.065108,61439.0,61437.0,0.001]
[1727937937460,0.03744453,61438.0,61437.0,0.001]
[1727937937632,0.03744453,61438.0,61437.0,0.002]
[1727937937935,0.13,61438.0,61437.0,0.002]
[1727937938928,0.13,61438.0,61437.0,0.001]
[1727937939235,0.131,61438.0,61437.0,0.002]
[1727937939436,0.16845916,61438.0,61437.0,0.002]
[1727937942541,0.065118,61430.0,61429.0,0.0038]
[1727937942730,0.23257716,61430.0,61428.0,0.0331]
[1727937943029,0.03717223,61429.0,61428.0,0.0331]
[1727937943430,0.03717223,61429.0,61424.0,0.0312]
[1727937943640,0.065119,61429.0,61424.0,0.0312]
[1727937944937,0.06512,61428.0,61424.0,0.0312]
[1727937945142,0.06512,61428.0,61425.0,0.38165965]
[1727937945637,0.06512,61428.0,61425.0,0.3618]
[1727937946142,0.06512,61428.0,61425.0,0.3628]
[1727937946441,0.004,61429.0,61425.0,0.3628]
[1727937946442,0.065121,61427.0,61425.0,0.3628]
[1727937948332,0.068121,61427.0,61425.0,0.3628]
[1727937949739,0.068121,61427.0,61425.0,0.002]
[1727937949947,0.068121,61427.0,61425.0,0.3628]
[1727937951941,0.068121,61427.0,61425.0,0.002]
[1727937952141,0.068121,61427.0,61425.0,0.3628]
[1727937958650,0.068121,61427.0,61425.0,0.002]
[1727937958953,0.068121,61427.0,61425.0,0.3628]
[1727937959451,0.13,61426.0,61425.0,0.3628]
[1727937959846,0.068121,61427.0,61425.0,0.3628]
[1727937960558,0.002,61426.0,61425.0,0.3628]
[1727937960745,0.003,61426.0,61425.0,0.3628]
[1727937962065,0.002,61426.0,61425.0,0.3628]
[1727937962353,0.066121,61427.0,61425.0,0.3628]
[1727937962354,0.068121,61427.0,61425.0,0.3628]
[1727937962749,0.002,61426.0,61425.0,0.3628]
[1727937963343,0.066121,61427.0,61425.0,0.3618]
[1727937963574,0.068121,61427.0,61425.0,0.3628]
[1727937963858,0.001,61426.0,61425.0,0.3628]
[1727937964455,0.067121,61427.0,61425.0,0.3618]
[1727937964661,0.068121,61427.0,61425.0,0.3628]
[1727937965348,0.001,61426.0,61425.0,0.3628]
[1727937965549,0.131,61426.0,61425.0,0.3628]
[1727937965751,0.133,61426.0,61425.0,0.3628]
[1727937966359,0.131,61426.0,61425.0,0.3628]
[1727937967066,0.132,61426.0,61425.0,0.3628]
[1727937967256,0.132,61426.0,61425.0,0.002]
[1727937968156,0.133,61426.0,61425.0,0.002]
[1727937968766,0.065123,61425.0,61423.0,0.00244176]
[1727937969161,0.03664672,61424.0,61423.0,0.00244176]
[1727937970064,0.03664672,61424.0,61423.0,0.00444176]
[1727937970866,0.03764672,61424.0,61423.0,0.00444176]
[1727937971663,0.03764672,61424.0,61423.0,0.00344176]
[1727937971870,0.04064672,61424.0,61423.0,0.00444176]
[1727937972263,0.03764672,61424.0,61423.0,0.00344176]
[1727937972463,0.03764672,61424.0,61423.0,0.002]
[1727937972464,0.04164672,61424.0,61423.0,0.002]
[1727937973272,0.04364672,61424.0,61423.0,0.002]
[1727937974471,0.40444672,61424.0,61423.0,0.002]
[1727937974869,0.40044672,61424.0,61423.0,0.001]
[1727937975064,0.40344672,61424.0,61423.0,0.002]
[1727937975267,0.006,61424.0,61423.0,0.002]
[1727937975874,0.0038,61434.0,61428.0,0.13]
[1727937976179,0.065111,61436.0,61428.0,0.13]
[1727937976367,0.03729636,61435.0,61428.0,0.13]
[1727937976567,0.065111,61436.0,61428.0,0.13]
[1727937976767,0.03731066,61435.0,61430.0,0.065117]
[1727937976967,0.065111,61436.0,61430.0,0.065117]
[1727937977170,0.03729835,61435.0,61430.0,0.065117]
[1727937977378,0.065111,61436.0,61430.0,0.065117]
[1727937977577,0.03730933,61435.0,61430.0,0.065117]
[1727937977778,0.065111,61436.0,61430.0,0.065117]
[1727937977986,0.0393092,61435.0,61430.0,0.065117]
[1727937978184,0.002,61435.0,61430.0,0.065117]
[1727937978885,0.002,61435.0,61430.0,0.066117]
[1727937979084,0.002,61435.0,61430.0,0.001]
[1727937979284,0.065116,61431.0,61428.0,0.001]
[1727937979580,0.065116,61431.0,61430.0,0.002]
[1727937979786,0.195116,61431.0,61430.0,0.002]
[1727937979983,0.23217305,61431.0,61430.0,0.002]
[1727937980371,0.23217305,61431.0,61430.0,0.001]
[1727937980577,0.232187,61431.0,61430.0,0.001]
[1727937981682,0.065119,61429.0,61428.0,0.002]
[1727937981988,0.10219,61429.0,61428.0,0.002]
[1727937982182,0.10219,61429.0,61428.0,0.001]
[1727937982486,0.065119,61429.0,61428.0,0.001]
[1727937982985,0.065119,61429.0,61424.0,0.3608]
[1727937983182,0.13,61425.0,61424.0,0.3608]
[1727937984383,0.13,61425.0,61424.0,0.001]
[1727937984603,0.13,61425.0,61424.0,0.3618]
[1727937984893,0.13,61425.0,61424.0,0.3628]
[1727937989990,0.13,61425.0,61424.0,0.002]
[1727937990186,0.13,61425.0,61424.0,0.3628]
[1727937994093,0.13,61425.0,61424.0,0.002]
[1727937994289,0.13,61425.0,61424.0,0.3628]
[1727937996091,0.1669802,61425.0,61424.0,0.002]
[1727937996486,0.27285168,61425.0,61424.0,0.002]
[1727937997493,0.1932,61425.0,61424.0,0.002]
[1727937997887,0.21388491,61425.0,61424.0,0.002]
[1727938003691,0.25058645,61425.0,61424.0,0.002]
[1727938005713,0.2504512,61425.0,61424.0,0.002]
[1727938006003,0.065124,61424.0,61417.0,0.0038]
[1727938006205,0.13,61418.0,61414.0,0.0038]
[1727938006402,0.065136,61413.0,61410.0,0.3919]
[1727938006594,0.13,61412.0,61410.0,0.3919]
[1727938007403,0.13,61412.0,61410.0,0.41320416]
[1727938007605,0.195137,61412.0,61410.0,0.41320416]
[1727938007799,0.195137,61412.0,61410.0,0.3919]
[1727938008103,0.195137,61412.0,61410.0,0.3959]
[1727938008896,0.195137,61412.0,61410.0,0.3989]
[1727938010805,0.195137,61412.0,61410.0,0.0381]
[1727938011020,0.195137,61412.0,61410.0,0.3989]
[1727938011504,0.195137,61412.0,61410.0,0.0381]
[1727938011705,0.195137,61412.0,61410.0,0.3989]
[1727938013805,0.2167175,61412.0,61410.0,0.3989]
[1727938013999,0.195137,61412.0,61410.0,0.3989]
[1727938019506,0.09,61411.0,61410.0,0.3989]
[1727938021211,0.09,61411.0,61410.0,0.3949]
[1727938021516,0.09,61411.0,61410.0,0.3989]
[1727938022611,0.09,61411.0,61410.0,0.0381]
[1727938023715,0.09,61411.0,61410.0,0.007]
[1727938024713,0.065137,61412.0,61410.0,0.007]
[1727938024910,0.09,61411.0,61410.0,0.007]
[1727938025513,0.065137,61412.0,61410.0,0.007]
[1727938025710,0.3608,61417.0,61410.0,0.007]
[1727938025711,0.09,61413.0,61410.0,0.007]
[1727938026312,0.09,61411.0,61410.0,0.007]
[1727938027611,0.13,61413.0,61410.0,0.007]
[1727938028821,0.065137,61412.0,61410.0,0.007]
[1727938030322,0.0314,61411.0,61410.0,0.007]
[1727938030911,0.0314,61411.0,61410.0,0.004]
[1727938031112,0.0314,61411.0,61410.0,0.007]
[1727938032624,0.065137,61412.0,61410.0,0.007]
[1727938033516,0.49260001,61413.0,61410.0,0.007]
[1727938033724,0.08609622,61417.0,61410.0,0.432939]
[1727938033725,0.195132,61417.0,61410.0,0.432939]
[1727938034116,0.195132,61417.0,61410.0,0.428939]
[1727938034327,0.195132,61417.0,61410.0,0.432939]
[1727938034713,0.0792718,61416.0,61410.0,0.432939]
[1727938034914,0.13,61413.0,61410.0,0.432939]
[1727938035220,0.03668213,61412.0,61410.0,0.432939]
[1727938035421,0.03668213,61412.0,61410.0,0.45464176]
[1727938036217,0.03668213,61412.0,61410.0,0.432939]
[1727938037123,0.03668213,61412.0,61410.0,0.428939]
[1727938037424,0.03668213,61412.0,61410.0,0.432939]
[1727938037829,0.03668213,61412.0,61410.0,0.428939]
[1727938038018,0.03668213,61412.0,61410.0,0.432939]
[1727938039230,0.03669547,61411.0,61410.0,0.432939]
[1727938040029,0.03669547,61411.0,61410.0,0.072139]
[1727938040430,0.03669547,61411.0,61410.0,0.432939]
[1727938040822,0.03669547,61411.0,61410.0,0.428939]
[1727938041126,0.03669547,61411.0,61410.0,0.432939]
[1727938042626,0.13,61413.0,61410.0,0.432939]
[1727938043919,0.13,61413.0,61410.0,0.429939]
[1727938044137,0.13,61413.0,61410.0,0.432939]
[1727938046744,0.13,61413.0,61410.0,0.072139]
[1727938049838,0.03677732,61412.0,61410.0,0.072139]
[1727938050142,0.03677732,61411.0,61410.0,0.072139]
[1727938052144,0.03677732,61411.0,61410.0,0.007]
[1727938053430,0.03669725,61411.0,61410.0,0.007]
[1727938053656,0.12669725,61411.0,61410.0,0.007]
[1727938057951,0.09,61411.0,61410.0,0.007]
[1727938059643,0.3608,61418.0,61411.0,0.065138]
[1727938059855,0.09,61413.0,61411.0,0.065138]
[1727938060852,0.09,61413.0,61411.0,0.067138]
[1727938061645,0.09,61413.0,61411.0,0.069138]
[1727938062558,0.0038,61423.0,61421.0,0.065127]
[1727938062755,0.00436274,61426.0,61425.0,0.065123]
[1727938062756,0.00244273,61426.0,61425.0,0.065123]
[1727938062953,0.00244273,61426.0,61425.0,0.47440148]
[1727938063460,0.00244273,61426.0,61425.0,0.425923]
[1727938064451,0.00244273,61426.0,61425.0,0.426923]
[1727938064862,0.00244273,61426.0,61425.0,0.44829394]
[1727938066252,0.00244273,61426.0,61425.0,0.44929394]
[1727938066455,0.00344273,61426.0,61425.0,0.44929394]
[1727938082784,0.0038,61434.0,61431.0,0.065116]
[1727938082983,0.15096782,61442.0,61432.0,0.033]
[1727938082984,0.0038,61441.0,61432.0,0.033]
[1727938083167,0.13,61442.0,61434.0,0.065113]
[1727938083372,0.13,61442.0,61435.0,0.065112]
[1727938083893,0.13,61442.0,61432.0,0.033]
[1727938083894,0.13,61442.0,61436.0,0.065111]
[1727938084078,0.13,61442.0,61438.0,0.065109]
[1727938084286,0.13,61444.0,61438.0,0.065109]
[1727938084980,0.002,61442.0,61438.0,0.065109]
[1727938086083,0.131,61444.0,61438.0,0.066109]
[1727938086877,0.196103,61444.0,61438.0,0.067109]
[1727938087579,0.196103,61444.0,61438.0,0.066109]
[1727938088070,0.195103,61444.0,61438.0,0.067109]
[1727938089074,0.13,61445.0,61438.0,0.002]
[1727938089277,0.13,61445.0,61439.0,0.065108]
[1727938089692,0.09,61442.0,61439.0,0.065108]
[1727938090491,0.09,61440.0,61439.0,0.065108]
[1727938090881,0.09,61440.0,61439.0,0.066108]
[1727938091080,0.09,61440.0,61439.0,0.067108]
[1727938091286,0.09,61440.0,61439.0,0.066108]
[1727938091479,0.09,61440.0,61439.0,0.067108]
[1727938091886,0.09,61440.0,61439.0,0.066108]
[1727938092183,0.09,61440.0,61439.0,0.067108]
[1727938104803,0.09,61443.0,61439.0,0.067108]
[1727938106507,0.03778446,61442.0,61439.0,0.067108]
[1727938106696,0.03778446,61441.0,61439.0,0.067108]
[1727938107005,0.09,61443.0,61439.0,0.067108]
[1727938107006,0.03778446,61440.0,61439.0,0.067108]
[1727938107998,0.3646,61448.0,61439.0,0.067108]
[1727938107999,0.0038,61448.0,61445.0,0.065102]
[1727938108195,0.0379421,61447.0,61445.0,0.065102]
[1727938108415,0.09,61449.0,61445.0,0.065102]
[1727938108416,0.0379421,61446.0,61445.0,0.065102]
[1727938108592,0.0379421,61448.0,61445.0,0.065102]
[1727938108797,0.09,61446.0,61445.0,0.065102]
[1727938109098,0.1279421,61446.0,61445.0,0.065102]
[1727938109503,0.1279421,61446.0,61445.0,0.066102]
[1727938109688,0.1279421,61446.0,61445.0,0.067102]
[1727938110004,0.1279421,61446.0,61445.0,0.002]
[1727938110302,0.09,61446.0,61445.0,0.002]
[1727938111697,0.09,61446.0,61445.0,0.02371745]
[1727938112606,0.12797942,61446.0,61445.0,0.02371745]
[1727938116105,0.12792163,61446.0,61445.0,0.02371745]
[1727938123007,0.12792163,61446.0,61445.0,0.002]
[1727938125412,0.17185894,61446.0,61445.0,0.002]
[1727938127014,0.17185894,61446.0,61439.0,0.0038]
[1727938127015,0.065104,61443.0,61439.0,0.0038]
[1727938127330,0.09,61440.0,61437.0,0.3608]
[1727938127502,0.03792163,61439.0,61437.0,0.38214044]
[1727938127696,0.09,61440.0,61437.0,0.38214044]
[1727938127697,0.03792163,61438.0,61437.0,0.38214044]
[1727938128905,0.03792163,61438.0,61437.0,0.38314044]
[1727938129902,0.03877338,61438.0,61437.0,0.38414044]
[1727938130299,0.0387711,61438.0,61437.0,0.38414044]
[1727938131014,0.0407711,61438.0,61437.0,0.38414044]
[1727938132342,0.003,61438.0,61437.0,0.3628]
[1727938134317,0.003,61438.0,61437.0,0.002]
[1727938134829,0.04054086,61438.0,61437.0,0.002]
[1727938135732,0.13054086,61438.0,61437.0,0.002]
[1727938139614,0.13045464,61438.0,61437.0,0.002]
[1727938140513,0.17394181,61438.0,61437.0,0.002]
[1727938146223,0.13045464,61438.0,61437.0,0.002]
[1727938147313,0.093,61438.0,61437.0,0.002]
[1727938149230,0.003,61438.0,61437.0,0.3628]
[1727938149436,0.003,61438.0,61437.0,0.4259]
[1727938150616,0.0038,61447.0,61437.0,0.4259]
[1727938150820,0.0038,61450.0,61445.0,0.09]
[1727938151021,0.4508,61455.0,61450.0,0.09]
[1727938151022,0.45260001,61455.0,61450.0,0.09]
[1727938151618,0.09,61452.0,61449.0,0.065097]
[1727938153029,0.09,61452.0,61450.0,0.001]
[1727938153234,0.09,61452.0,61450.0,0.002]
[1727938153836,0.09,61452.0,61450.0,0.0332]
[1727938154437,0.09,61452.0,61450.0,0.0342]
[1727938154734,0.09,61452.0,61450.0,0.394]
[1727938154939,0.03819046,61451.0,61450.0,0.394]
[1727938155534,0.03819046,61451.0,61450.0,0.395]
[1727938156040,0.03819046,61451.0,61450.0,0.3628]
[1727938156923,0.11406643,61451.0,61450.0,0.002]
[1727938157144,0.11406303,61451.0,61450.0,0.0010891]
[1727938157342,0.11406303,61451.0,61450.0,0.001]
[1727938157639,0.11406303,61451.0,61450.0,0.002]
[1727938162941,0.0318,61451.0,61450.0,0.002]
[1727938165150,0.06970447,61451.0,61450.0,0.002]
[1727938165845,0.0318,61451.0,61450.0,0.002]
[1727938166238,0.06971027,61451.0,61450.0,0.002]
[1727938170145,0.06971027,61451.0,61450.0,0.0010901]
[1727938170146,0.0318,61451.0,61450.0,0.0010901]
[1727938170354,0.11374003,61451.0,61450.0,0.0010901]
[1727938171643,0.11374003,61451.0,61450.0,0.0010901]
[1727938171840,0.11375362,61451.0,61450.0,0.0010901]
[1727938173834,0.25387997,61451.0,61450.0,0.0010901]
[1727938174338,0.40018958,61451.0,61450.0,0.0010901]
[1727938174539,0.25387997,61451.0,61450.0,0.0010901]
[1727938174943,0.40018958,61451.0,61450.0,0.0010901]
[1727938175849,0.36838958,61451.0,61450.0,0.0010901]
[1727938176343,0.17195362,61451.0,61450.0,0.0010901]
[1727938177949,0.12792311,61451.0,61450.0,0.0010901]
[1727938181343,0.12794003,61451.0,61450.0,0.0010901]
[1727938181743,0.17199383,61451.0,61450.0,0.0010901]
[1727938183137,0.30203501,61451.0,61450.0,0.0010901]
[1727938184153,0.17199383,61451.0,61450.0,0.0010901]
[1727938184956,0.30219308,61451.0,61450.0,0.0010901]
[1727938185256,0.17199383,61451.0,61450.0,0.0010901]
[1727938185955,0.30219462,61451.0,61450.0,0.0010901]
[1727938186152,0.17199383,61451.0,61450.0,0.0010901]
[1727938186553,0.17199383,61451.0,61445.0,0.0038]
[1727938186554,0.065101,61446.0,61445.0,0.0038]
[1727938186750,0.065101,61446.0,61443.0,0.0038]
[1727938186751,0.065105,61442.0,61441.0,0.0038]
[1727938186949,0.065105,61442.0,61439.0,0.0354]
[1727938186950,0.19882038,61442.0,61439.0,0.0316]
[1727938187148,0.03794003,61441.0,61439.0,0.0316]
[1727938187357,0.03794003,61440.0,61439.0,0.0316]
[1727938188960,0.03794003,61440.0,61439.0,0.0336]
[1727938189356,0.03894003,61440.0,61439.0,0.0346]
[1727938190757,0.03857034,61440.0,61439.0,0.0346]
[1727938192452,0.001,61440.0,61439.0,0.0346]
[1727938193052,0.21236683,61440.0,61439.0,0.003]
[1727938193649,0.08211167,61440.0,61439.0,0.003]
[1727938196457,0.13207431,61440.0,61439.0,0.003]
[1727938196860,0.08211167,61440.0,61439.0,0.003]
[1727938199362,0.17211167,61440.0,61439.0,0.003]
[1727938200067,0.091,61440.0,61439.0,0.003]
[1727938201572,0.12843228,61440.0,61439.0,0.003]
[1727938202157,0.091,61440.0,61439.0,0.003]
[1727938203163,0.001,61440.0,61439.0,0.003]
[1727938203358,0.091,61440.0,61439.0,0.003]
[1727938214671,0.091,61440.0,61436.0,0.3608]
[1727938214672,0.065123,61425.0,61424.0,0.0082]
[1727938214879,0.065123,61425.0,61422.0,0.3608]
[1727938214880,0.155123,61425.0,61422.0,0.3608]
[1727938215174,0.03701878,61424.0,61422.0,0.3608]
[1727938215375,0.03701878,61423.0,61422.0,0.3608]
[1727938217479,0.03701878,61423.0,61420.0,0.0314]
[1727938217779,0.065125,61423.0,61422.0,0.001]
[1727938217974,0.10193834,61423.0,61422.0,0.001]
[1727938218174,0.03981334,61423.0,61418.0,0.0638]
[1727938218377,0.071125,61423.0,61422.0,0.001]
[1727938218569,0.19799529,61423.0,61422.0,0.001]
[1727938220076,0.19699529,61423.0,61418.0,0.0318]
[1727938220277,0.09,61419.0,61418.0,0.0318]
[1727938222187,0.092,61419.0,61418.0,0.0318]
[1727938222774,0.065136,61413.0,61411.0,0.0658]
[1727938222975,0.09,61414.0,61411.0,0.0658]
[1727938223171,0.002,61419.0,61415.0,0.065133]
[1727938223378,0.002,61419.0,61417.0,0.09]
[1727938223781,0.002,61419.0,61416.0,0.3608]
[1727938223977,0.002,61419.0,61417.0,0.065131]
[1727938224177,0.09,61418.0,61417.0,0.065131]
[1727938226874,0.092,61418.0,61417.0,0.065131]
[1727938227884,0.092,61418.0,61417.0,0.097831]
[1727938228485,0.002,61418.0,61417.0,0.097831]
[1727938228879,0.092,61418.0,61417.0,0.097831]
[1727938230878,0.092,61418.0,61417.0,0.0327]
[1727938232790,0.092,61418.0,61416.0,0.3608]
[1727938232986,0.157131,61418.0,61416.0,0.3608]
[1727938234879,0.160131,61418.0,61416.0,0.3608]
[1727938235685,0.160131,61418.0,61412.0,0.02103779]
[1727938235994,0.09,61413.0,61411.0,0.3934]
[1727938237185,0.09,61413.0,61411.0,0.3954]
[1727938237387,0.09,61413.0,61412.0,0.002]
[1727938239188,0.09,61413.0,61411.0,0.42024101]
[1727938239387,0.09,61413.0,61411.0,0.05860101]
[1727938239592,0.09,61413.0,61412.0,0.001]
[1727938239789,0.09,61413.0,61412.0,1.501]
[1727938240192,0.09,61413.0,61412.0,1.503]
[1727938249402,0.09,61413.0,61412.0,0.003]
[1727938251403,0.1201,61413.0,61412.0,0.003]
[1727938256109,0.1521,61413.0,61412.0,0.003]
[1727938258218,0.1521,61413.0,61408.0,0.0508057]
[1727938258219,0.06514,61409.0,61408.0,0.0508057]
[1727938258404,0.06514,61409.0,61397.0,0.06448409]
[1727938258405,0.09,61407.0,61397.0,0.06448409]
[1727938258706,0.09,61398.0,61392.0,0.08304836]
[1727938258902,0.06515,61399.0,61392.0,0.08304836]
[1727938258903,0.09,61393.0,61392.0,0.08304836]
[1727938259108,0.09,61393.0,61392.0,0.00244325]
[1727938259308,0.0324,61398.0,61392.0,0.00244325]
[1727938259492,0.09,61393.0,61392.0,0.00244325]
[1727938260211,0.09,61393.0,61392.0,0.00944325]
[1727938261300,0.09,61393.0,61390.0,0.01783653]
[1727938261506,0.09,61393.0,61392.0,0.006]
[1727938262614,0.091,61393.0,61392.0,0.006]
[1727938263203,0.091,61393.0,61392.0,0.007]
[1727938263512,0.091,61393.0,61392.0,0.013]
[1727938265703,0.0038,61401.0,61397.0,0.065152]
[1727938265910,0.21143661,61421.0,61400.0,0.4508]
[1727938265911,0.09,61405.0,61400.0,0.4508]
[1727938266407,0.09,61405.0,61402.0,0.065147]
[1727938266917,0.09,61403.0,61402.0,0.065147]
[1727938267413,0.09,61403.0,61402.0,1.565147]
[1727938268199,0.09,61403.0,61402.0,0.065147]
[1727938268605,0.094,61403.0,61402.0,0.065147]
[1727938270807,0.097,61403.0,61402.0,0.065147]
[1727938271600,0.097,61403.0,61402.0,0.425947]
[1727938272305,0.097,61403.0,61400.0,1.50084]
[1727938272507,0.097,61403.0,61400.0,1.5]
[1727938273914,0.093,61403.0,61400.0,1.5]
[1727938274111,0.095,61403.0,61400.0,1.5]
[1727938274810,0.092,61403.0,61400.0,1.5]
[1727938275120,0.094,61403.0,61400.0,1.5]
[1727938277422,0.094,61403.0,61399.0,0.02131962]
[1727938277614,0.094,61403.0,61398.0,0.158151]
[1727938277615,0.09,61400.0,61398.0,0.158151]
[1727938281018,0.09,61400.0,61398.0,0.14774742]
[1727938283425,0.09,61400.0,61399.0,1.5]
[1727938284717,0.091,61400.0,61399.0,1.5]
[1727938284927,0.092,61400.0,61399.0,1.5]
[1727938286417,0.092,61400.0,61398.0,0.08654742]
[1727938286418,0.092,61400.0,61398.0,0.02139642]
[1727938286619,0.092,61400.0,61396.0,0.3608]
[1727938286817,0.09,61397.0,61396.0,0.3608]
[1727938288925,0.09,61397.0,61396.0,0.38253389]
[1727938289115,0.09,61397.0,61396.0,0.38453389]
[1727938289416,0.09,61397.0,61396.0,0.02573389]
[1727938289622,0.09,61397.0,61396.0,0.38653389]
[1727938289810,0.09,61397.0,61396.0,0.02573389]
[1727938292520,0.09,61397.0,61396.0,0.38653389]
[1727938298433,0.065149,61401.0,61396.0,0.45168689]
[1727938298732,0.09,61397.0,61396.0,0.45168689]
[1727938299128,0.0038,61404.0,61401.0,0.065148]
[1727938299333,0.09,61403.0,61401.0,0.065148]
[1727938300123,0.09,61403.0,61396.0,0.38653389]
[1727938300434,0.09,61397.0,61396.0,0.44968689]
[1727938300824,0.09,61397.0,61396.0,0.08888689]
[1727938301020,0.09,61397.0,61396.0,0.44968689]
[1727938301725,0.09,61397.0,61396.0,0.44768689]
[1727938302232,0.09,61397.0,61396.0,0.44968689]
[1727938302436,0.09,61397.0,61396.0,0.38653389]
[1727938304628,0.09,61401.0,61398.0,0.065151]
[1727938304829,0.09,61401.0,61399.0,0.06515]
[1727938305926,0.091,61401.0,61399.0,0.06515]
[1727938306629,0.092,61401.0,61399.0,0.06515]
[1727938310831,0.092,61401.0,61396.0,0.38253389]
[1727938311027,0.09,61397.0,61396.0,0.38253389]
[1727938312323,0.09,61397.0,61396.0,0.38453389]
[1727938313329,0.09,61397.0,61396.0,0.44901798]
[1727938313536,0.09,61397.0,61396.0,0.45101798]
[1727938320541,0.09,61397.0,61396.0,0.38653389]
[1727938322842,0.065147,61402.0,61396.0,0.45168689]
[1727938323140,0.09,61397.0,61396.0,0.45168689]
[1727938324739,0.09,61397.0,61396.0,0.09088689]
[1727938325335,0.09,61397.0,61396.0,0.45168689]
[1727938326032,0.09,61397.0,61396.0,0.09088689]
[1727938326233,0.09,61397.0,61396.0,0.44968689]
[1727938326555,0.09,61397.0,61396.0,0.45168689]
[1727938327844,0.09,61397.0,61396.0,0.38653389]
[1727938328047,0.09,61397.0,61396.0,0.004]
[1727938328541,0.1204,61397.0,61396.0,0.004]
[1727938333350,0.0304,61397.0,61396.0,0.004]
[1727938333649,0.065152,61398.0,61396.0,0.004]
[1727938333851,0.3608,61400.0,61396.0,0.004]
[1727938333852,0.3608,61400.0,61396.0,0.094]
[1727938334148,0.09,61401.0,61397.0,0.3608]
[1727938334350,0.09,61401.0,61397.0,0.4523]
[1727938334549,0.09,61403.0,61399.0,0.06515]
[1727938335956,0.09,61401.0,61399.0,0.06515]
[1727938337046,0.09,61401.0,61400.0,0.3608]
[1727938337247,0.091,61401.0,61400.0,0.3608]
[1727938337550,0.092,61401.0,61400.0,0.3608]